[Event "Titled Tuesday Blitz January 17 Early 2023"]
[White "Soumya, Swaminathan"]
[Black "Jares, Michal"]
[WhiteFideId "5016193"]
[BlackFideId "386839"]
[WhiteElo "2293"]
[BlackElo "2177"]
[Result "1/2-1/2"]
[Round "02"]
[TimeControl "180+2"]
[Date "2023.01.17"]
[WhiteClock "0:00:05"]
[BlackClock "0:00:04"]

1. e4 {[%clk 0:03:00]}  c5 {[%clk 0:03:00]} 2. Nf3 {[%clk 0:03:00]}  d6 {[%clk 0:03:01]} 3. d4 {[%clk 0:02:59]}  cxd4 {[%clk 0:03:02]} 4. Nxd4 {[%clk 0:03:00]}  Nf6 {[%clk 0:03:01]} 5. Nc3 {[%clk 0:03:00]}  g6 {[%clk 0:03:00]} 6. Be3 {[%clk 0:02:58]}  Bg7 {[%clk 0:03:00]} 7. f3 {[%clk 0:02:53]}  O-O {[%clk 0:02:59]} 8. Qd2 {[%clk 0:02:52]}  Nc6 {[%clk 0:02:59]} 9. Bc4 {[%clk 0:02:52]}  Bd7 {[%clk 0:02:58]} 10. Bb3 {[%clk 0:02:43]}  Ne5 {[%clk 0:02:57]} 11. O-O-O {[%clk 0:02:39]}  Rc8 {[%clk 0:02:57]} 12. Kb1 {[%clk 0:02:31]}  Re8 {[%clk 0:02:49]} 13. g4 {[%clk 0:02:10]}  Qa5 {[%clk 0:02:23]} 14. h4 {[%clk 0:02:00]}  h5 {[%clk 0:02:20]} 15. gxh5 {[%clk 0:01:46]}  Nxh5 {[%clk 0:02:18]} 16. Rdg1 {[%clk 0:01:43]}  Kh7 {[%clk 0:02:08]} 17. f4 {[%clk 0:01:24]}  Nc4 {[%clk 0:01:47]} 18. Bxc4 {[%clk 0:00:59]}  Rxc4 {[%clk 0:01:48]} 19. f5 {[%clk 0:00:53]}  Rxc3 {[%clk 0:01:33]} 20. Qxc3 {[%clk 0:00:46]}  Qxc3 {[%clk 0:01:32]} 21. bxc3 {[%clk 0:00:46]}  Rc8 {[%clk 0:01:31]} 22. Kb2 {[%clk 0:00:41]}  Nf6 {[%clk 0:01:26]} 23. fxg6+ {[%clk 0:00:31]}  fxg6 {[%clk 0:01:27]} 24. h5 {[%clk 0:00:28]}  gxh5 {[%clk 0:01:15]} 25. Nf5 {[%clk 0:00:14]}  Bxf5 {[%clk 0:01:10]} 26. exf5 {[%clk 0:00:15]}  Rc4 {[%clk 0:00:52]} 27. Bd4 {[%clk 0:00:14]}  Kg8 {[%clk 0:00:19]} 28. Bxf6 {[%clk 0:00:12]}  exf6 {[%clk 0:00:20]} 29. Rxh5 {[%clk 0:00:12]}  Rf4 {[%clk 0:00:16]} 30. Rh6 {[%clk 0:00:11]}  Rxf5 {[%clk 0:00:13]} 31. Rhg6 {[%clk 0:00:12]}  Rb5+ {[%clk 0:00:12]} 32. Kc1 {[%clk 0:00:11]}  Rg5 {[%clk 0:00:12]} 33. R6xg5 {[%clk 0:00:11]}  fxg5 {[%clk 0:00:13]} 34. Rxg5 {[%clk 0:00:11]}  Kf7 {[%clk 0:00:13]} 35. Kd1 {[%clk 0:00:10]}  Bxc3 {[%clk 0:00:12]} 36. Rd5 {[%clk 0:00:10]}  Ke6 {[%clk 0:00:10]} 37. Rd3 {[%clk 0:00:10]}  Be5 {[%clk 0:00:10]} 38. c4 {[%clk 0:00:10]}  Kd7 {[%clk 0:00:08]} 39. Kc2 {[%clk 0:00:10]}  Kc6 {[%clk 0:00:08]} 40. Kb3 {[%clk 0:00:10]}  a6 {[%clk 0:00:06]} 41. a4 {[%clk 0:00:11]}  b5 {[%clk 0:00:05]} 42. axb5+ {[%clk 0:00:10]}  axb5 {[%clk 0:00:06]} 43. Rd5 {[%clk 0:00:09]}  bxc4+ {[%clk 0:00:06]} 44. Kxc4 {[%clk 0:00:10]}  Bf4 {[%clk 0:00:07]} 45. Rf5 {[%clk 0:00:09]}  Be5 {[%clk 0:00:08]} 46. Kd3 {[%clk 0:00:09]}  Kd5 {[%clk 0:00:07]} 47. Rh5 {[%clk 0:00:08]}  Ke6 {[%clk 0:00:08]} 48. Rh6+ {[%clk 0:00:09]}  Bf6 {[%clk 0:00:06]} 49. Ke4 {[%clk 0:00:07]}  d5+ {[%clk 0:00:06]} 50. Kd3 {[%clk 0:00:07]}  Kf5 {[%clk 0:00:04]} 51. Rh5+ {[%clk 0:00:07]}  Bg5 {[%clk 0:00:05]} 52. Kd4 {[%clk 0:00:06]}  Kg4 {[%clk 0:00:03]} 53. Rh7 {[%clk 0:00:06]}  Bf4 {[%clk 0:00:02]} 54. Kxd5 {[%clk 0:00:06]}  Kf3 {[%clk 0:00:03]} 55. Rf7 {[%clk 0:00:05]}  Ke3 {[%clk 0:00:04]} 56. Rf5 {[%clk 0:00:05]}  Bg3 {[%clk 0:00:03]} 57. Rg5 {[%clk 0:00:04]}  Bf4 {[%clk 0:00:03]} 58. Rf5 {[%clk 0:00:04]}  Bg3 {[%clk 0:00:03]} 59. Rg5 {[%clk 0:00:05]}  Bf4 {[%clk 0:00:04]} 60. Rf5 {[%clk 0:00:05]} 1/2-1/2


[Site "https://www.chess.com"]

[Event "Titled Tuesday Blitz January 17 Early 2023"]
[White "Golding, Alex"]
[Black "Jimenez Fernandez, Rebeca"]
[WhiteFideId "427241"]
[BlackFideId "32070934"]
[WhiteElo "2318"]
[BlackElo "2069"]
[Result "1-0"]
[Round "02"]
[TimeControl "180+2"]
[Date "2023.01.17"]
[WhiteClock "0:00:06"]
[BlackClock "0:00:01"]

1. Nf3 {[%clk 0:02:55]}  g6 {[%clk 0:02:58]} 2. e4 {[%clk 0:02:54]}  Bg7 {[%clk 0:02:59]} 3. d4 {[%clk 0:02:55]}  d6 {[%clk 0:02:58]} 4. h3 {[%clk 0:02:50]}  a6 {[%clk 0:02:58]} 5. c4 {[%clk 0:02:47]}  c5 {[%clk 0:02:50]} 6. Nc3 {[%clk 0:02:41]}  cxd4 {[%clk 0:02:49]} 7. Nxd4 {[%clk 0:02:39]}  Nf6 {[%clk 0:02:47]} 8. Be3 {[%clk 0:02:35]}  O-O {[%clk 0:02:46]} 9. Bd3 {[%clk 0:02:30]}  Nc6 {[%clk 0:02:45]} 10. Nde2 {[%clk 0:02:25]}  Bd7 {[%clk 0:02:38]} 11. O-O {[%clk 0:02:25]}  Ne5 {[%clk 0:02:36]} 12. Rc1 {[%clk 0:02:24]}  Rc8 {[%clk 0:02:26]} 13. b3 {[%clk 0:02:21]}  Bc6 {[%clk 0:02:19]} 14. Nd4 {[%clk 0:02:16]}  Nxd3 {[%clk 0:02:17]} 15. Qxd3 {[%clk 0:02:17]}  Nd7 {[%clk 0:02:18]} 16. Nxc6 {[%clk 0:02:15]}  Rxc6 {[%clk 0:02:17]} 17. f3 {[%clk 0:02:09]}  Ne5 {[%clk 0:01:57]} 18. Qd2 {[%clk 0:02:03]}  Qc8 {[%clk 0:01:48]} 19. a4 {[%clk 0:01:58]}  Re8 {[%clk 0:01:37]} 20. Rfd1 {[%clk 0:01:47]}  Qd7 {[%clk 0:01:10]} 21. Nd5 {[%clk 0:01:41]}  e6 {[%clk 0:00:51]} 22. Nb6 {[%clk 0:01:37]}  Qe7 {[%clk 0:00:50]} 23. f4 {[%clk 0:01:33]}  Nd7 {[%clk 0:00:49]} 24. Nxd7 {[%clk 0:01:31]}  Qxd7 {[%clk 0:00:50]} 25. e5 {[%clk 0:01:32]}  d5 {[%clk 0:00:46]} 26. c5 {[%clk 0:01:22]}  Qc7 {[%clk 0:00:26]} 27. Bd4 {[%clk 0:01:20]}  a5 {[%clk 0:00:25]} 28. Qb2 {[%clk 0:01:11]}  Bf8 {[%clk 0:00:22]} 29. Qf2 {[%clk 0:00:42]}  Qc8 {[%clk 0:00:13]} 30. Rc3 {[%clk 0:00:40]}  b6 {[%clk 0:00:13]} 31. Rdc1 {[%clk 0:00:36]}  bxc5 {[%clk 0:00:13]} 32. Bxc5 {[%clk 0:00:37]}  Qc7 {[%clk 0:00:12]} 33. Bd4 {[%clk 0:00:33]}  Rxc3 {[%clk 0:00:08]} 34. Rxc3 {[%clk 0:00:33]}  Qb7 {[%clk 0:00:09]} 35. g4 {[%clk 0:00:22]}  Rc8 {[%clk 0:00:07]} 36. f5 {[%clk 0:00:20]}  Rxc3 {[%clk 0:00:06]} 37. Bxc3 {[%clk 0:00:21]}  Qc6 {[%clk 0:00:06]} 38. Bd4 {[%clk 0:00:20]}  Qc1+ {[%clk 0:00:05]} 39. Kh2 {[%clk 0:00:20]}  exf5 {[%clk 0:00:02]} 40. gxf5 {[%clk 0:00:20]}  Bh6 {[%clk 0:00:02]} 41. fxg6 {[%clk 0:00:16]}  hxg6 {[%clk 0:00:03]} 42. e6 {[%clk 0:00:13]}  Bf4+ {[%clk 0:00:03]} 43. Kg2 {[%clk 0:00:13]}  fxe6 {[%clk 0:00:02]} 44. Qe2 {[%clk 0:00:08]}  e5 {[%clk 0:00:01]} 45. Bb6 {[%clk 0:00:06]} 1-0


[Site "https://www.chess.com"]

[Event "Titled Tuesday Blitz January 17 Early 2023"]
[White "Ruge, Edison"]
[Black "Mestnikov, Aisen"]
[WhiteFideId "4401000"]
[BlackFideId "34130117"]
[WhiteElo "2201"]
[BlackElo "2078"]
[Result "1-0"]
[Round "02"]
[TimeControl "180+2"]
[Date "2023.01.17"]
[WhiteClock "0:00:36"]
[BlackClock "0:00:03"]

1. e4 {[%clk 0:03:00]}  e5 {[%clk 0:02:59]} 2. Nf3 {[%clk 0:02:59]}  Nc6 {[%clk 0:02:59]} 3. Bb5 {[%clk 0:02:59]}  a6 {[%clk 0:02:59]} 4. Ba4 {[%clk 0:02:57]}  Nf6 {[%clk 0:02:57]} 5. Qe2 {[%clk 0:02:57]}  b5 {[%clk 0:02:54]} 6. Bb3 {[%clk 0:02:54]}  Be7 {[%clk 0:02:54]} 7. a4 {[%clk 0:02:54]}  b4 {[%clk 0:02:53]} 8. a5 {[%clk 0:02:53]}  O-O {[%clk 0:02:52]} 9. d3 {[%clk 0:02:53]}  d6 {[%clk 0:02:48]} 10. h3 {[%clk 0:02:51]}  Be6 {[%clk 0:02:47]} 11. Nbd2 {[%clk 0:02:48]}  Nd7 {[%clk 0:02:47]} 12. Ba4 {[%clk 0:02:30]}  Nd4 {[%clk 0:02:40]} 13. Nxd4 {[%clk 0:02:27]}  exd4 {[%clk 0:02:41]} 14. f4 {[%clk 0:02:25]}  f5 {[%clk 0:02:38]} 15. O-O {[%clk 0:02:18]}  Nc5 {[%clk 0:02:37]} 16. Bc6 {[%clk 0:02:15]}  Rb8 {[%clk 0:02:34]} 17. b3 {[%clk 0:02:07]}  Bd7 {[%clk 0:02:16]} 18. Bxd7 {[%clk 0:02:05]}  Qxd7 {[%clk 0:02:13]} 19. Bb2 {[%clk 0:02:01]}  Bf6 {[%clk 0:02:11]} 20. Nf3 {[%clk 0:01:58]}  fxe4 {[%clk 0:02:08]} 21. Bxd4 {[%clk 0:01:45]}  exd3 {[%clk 0:02:04]} 22. cxd3 {[%clk 0:01:39]}  Nxb3 {[%clk 0:01:52]} 23. Bxf6 {[%clk 0:01:30]}  Rxf6 {[%clk 0:01:48]} 24. Qa2 {[%clk 0:01:22]}  Qf7 {[%clk 0:00:38]} 25. Ng5 {[%clk 0:01:20]}  Qd5 {[%clk 0:00:33]} 26. Rab1 {[%clk 0:01:12]}  Qxd3 {[%clk 0:00:19]} 27. Qxb3+ {[%clk 0:01:09]}  Qxb3 {[%clk 0:00:18]} 28. Rxb3 {[%clk 0:01:09]}  c5 {[%clk 0:00:18]} 29. Rc1 {[%clk 0:01:06]}  Rxf4 {[%clk 0:00:17]} 30. Ne6 {[%clk 0:01:00]}  Re4 {[%clk 0:00:16]} 31. Nc7 {[%clk 0:00:59]}  Rb7 {[%clk 0:00:13]} 32. Nd5 {[%clk 0:00:54]}  Rd4 {[%clk 0:00:09]} 33. Nb6 {[%clk 0:00:54]}  Rd2 {[%clk 0:00:06]} 34. Re1 {[%clk 0:00:53]}  Ra2 {[%clk 0:00:05]} 35. Rbe3 {[%clk 0:00:50]}  Kf7 {[%clk 0:00:05]} 36. Rf1+ {[%clk 0:00:48]}  Kg6 {[%clk 0:00:04]} 37. Re6+ {[%clk 0:00:48]}  Kh5 {[%clk 0:00:04]} 38. Rf5+ {[%clk 0:00:43]}  g5 {[%clk 0:00:03]} 39. Kh2 {[%clk 0:00:36]} 1-0


[Site "https://www.chess.com"]

[Event "Titled Tuesday Blitz January 17 Early 2023"]
[White "Rose, Felix"]
[Black "Avazkhonov, Alikhon"]
[WhiteFideId "5105722"]
[BlackFideId "14208504"]
[WhiteElo "2091"]
[BlackElo "1538"]
[Result "0-1"]
[Round "02"]
[TimeControl "180+2"]
[Date "2023.01.17"]
[WhiteClock "0:00:02"]
[BlackClock "0:00:04"]

1. e4 {[%clk 0:03:00]}  c5 {[%clk 0:02:59]} 2. Nf3 {[%clk 0:02:59]}  d6 {[%clk 0:02:59]} 3. d4 {[%clk 0:02:59]}  cxd4 {[%clk 0:03:00]} 4. Nxd4 {[%clk 0:03:00]}  Nf6 {[%clk 0:03:01]} 5. Nc3 {[%clk 0:03:00]}  a6 {[%clk 0:03:02]} 6. Be3 {[%clk 0:03:00]}  e5 {[%clk 0:03:01]} 7. Nb3 {[%clk 0:03:01]}  Be6 {[%clk 0:03:01]} 8. f3 {[%clk 0:03:00]}  h5 {[%clk 0:03:01]} 9. Nd5 {[%clk 0:02:58]}  Nbd7 {[%clk 0:03:00]} 10. c4 {[%clk 0:02:55]}  Bxd5 {[%clk 0:02:49]} 11. cxd5 {[%clk 0:02:49]}  g6 {[%clk 0:02:49]} 12. Be2 {[%clk 0:02:47]}  Bh6 {[%clk 0:02:49]} 13. Bf2 {[%clk 0:02:36]}  Rc8 {[%clk 0:02:33]} 14. O-O {[%clk 0:02:34]}  O-O {[%clk 0:02:33]} 15. a4 {[%clk 0:02:26]}  Nb6 {[%clk 0:02:05]} 16. Na5 {[%clk 0:02:08]}  Nbxd5 {[%clk 0:01:46]} 17. Nxb7 {[%clk 0:02:04]}  Qc7 {[%clk 0:01:46]} 18. Nxd6 {[%clk 0:01:15]}  Qxd6 {[%clk 0:01:45]} 19. exd5 {[%clk 0:01:11]}  Rb8 {[%clk 0:01:32]} 20. b3 {[%clk 0:00:47]}  Rfd8 {[%clk 0:01:28]} 21. Rb1 {[%clk 0:00:26]}  Nxd5 {[%clk 0:01:26]} 22. Bc4 {[%clk 0:00:25]}  a5 {[%clk 0:00:21]} 23. Rb2 {[%clk 0:00:11]}  Ne3 {[%clk 0:00:07]} 24. Qxd6 {[%clk 0:00:09]}  Rxd6 {[%clk 0:00:08]} 25. Bxe3 {[%clk 0:00:07]}  Bxe3+ {[%clk 0:00:09]} 26. Kh1 {[%clk 0:00:08]}  Rbd8 {[%clk 0:00:08]} 27. Rbb1 {[%clk 0:00:08]}  Kg7 {[%clk 0:00:06]} 28. g3 {[%clk 0:00:07]}  Rd2 {[%clk 0:00:06]} 29. Rfe1 {[%clk 0:00:05]}  Bb6 {[%clk 0:00:03]} 30. Rxe5 {[%clk 0:00:03]}  Rc2 {[%clk 0:00:04]} 31. Ree1 {[%clk 0:00:02]}  Rdd2 {[%clk 0:00:04]} 0-1


[Site "https://www.chess.com"]

[Event "Titled Tuesday Blitz January 17 Early 2023"]
[White "Tarnowska, Aleksandra"]
[Black "Wahedi, Ahmad Siar"]
[WhiteFideId "1180967"]
[BlackFideId "4651260"]
[WhiteElo "1835"]
[BlackElo "2274"]
[Result "0-1"]
[Round "02"]
[TimeControl "180+2"]
[Date "2023.01.17"]
[WhiteClock "0:00:01"]
[BlackClock "0:01:54"]

1. e4 {[%clk 0:03:00]}  e6 {[%clk 0:02:56]} 2. d4 {[%clk 0:03:00]}  d5 {[%clk 0:02:56]} 3. Nd2 {[%clk 0:03:00]}  dxe4 {[%clk 0:02:54]} 4. Nxe4 {[%clk 0:03:00]}  Nf6 {[%clk 0:02:54]} 5. Ng3 {[%clk 0:02:59]}  c5 {[%clk 0:02:53]} 6. Nf3 {[%clk 0:02:55]}  cxd4 {[%clk 0:02:52]} 7. Qxd4 {[%clk 0:02:54]}  Qxd4 {[%clk 0:02:49]} 8. Nxd4 {[%clk 0:02:54]}  a6 {[%clk 0:02:50]} 9. Be2 {[%clk 0:02:42]}  Bc5 {[%clk 0:02:47]} 10. Nb3 {[%clk 0:02:33]}  Bd6 {[%clk 0:02:44]} 11. Bf3 {[%clk 0:02:18]}  Nc6 {[%clk 0:02:43]} 12. c3 {[%clk 0:02:08]}  Bd7 {[%clk 0:02:43]} 13. Be3 {[%clk 0:01:57]}  Rc8 {[%clk 0:02:42]} 14. Rd1 {[%clk 0:01:30]}  Ke7 {[%clk 0:02:41]} 15. O-O {[%clk 0:00:44]}  Rhd8 {[%clk 0:02:40]} 16. Rfe1 {[%clk 0:00:43]}  Be8 {[%clk 0:02:38]} 17. Bb6 {[%clk 0:00:40]}  Bc7 {[%clk 0:02:32]} 18. Bc5+ {[%clk 0:00:31]}  Bd6 {[%clk 0:02:28]} 19. Nf5+ {[%clk 0:00:31]}  Kf8 {[%clk 0:02:25]} 20. Bxd6+ {[%clk 0:00:28]}  Kg8 {[%clk 0:02:25]} 21. Ne7+ {[%clk 0:00:25]}  Nxe7 {[%clk 0:02:22]} 22. Bxe7 {[%clk 0:00:26]}  Rxd1 {[%clk 0:02:22]} 23. Rxd1 {[%clk 0:00:26]}  Bc6 {[%clk 0:02:22]} 24. Bxc6 {[%clk 0:00:23]}  bxc6 {[%clk 0:02:22]} 25. Bxf6 {[%clk 0:00:24]}  gxf6 {[%clk 0:02:22]} 26. f3 {[%clk 0:00:22]}  Rb8 {[%clk 0:02:22]} 27. Rd6 {[%clk 0:00:21]}  Rb6 {[%clk 0:02:21]} 28. Kf2 {[%clk 0:00:20]}  Kf8 {[%clk 0:02:22]} 29. Ke3 {[%clk 0:00:20]}  Ke7 {[%clk 0:02:22]} 30. Rd4 {[%clk 0:00:20]}  c5 {[%clk 0:02:22]} 31. Nxc5 {[%clk 0:00:20]}  Rxb2 {[%clk 0:02:22]} 32. Nxa6 {[%clk 0:00:14]}  Rxa2 {[%clk 0:02:22]} 33. Nc5 {[%clk 0:00:13]}  Rxg2 {[%clk 0:02:22]} 34. h4 {[%clk 0:00:14]}  f5 {[%clk 0:02:15]} 35. Rd7+ {[%clk 0:00:13]}  Kf6 {[%clk 0:02:16]} 36. Rb7 {[%clk 0:00:12]}  Rh2 {[%clk 0:02:15]} 37. Nd7+ {[%clk 0:00:12]}  Kg7 {[%clk 0:02:14]} 38. Rb4 {[%clk 0:00:12]}  h5 {[%clk 0:02:12]} 39. Ne5 {[%clk 0:00:11]}  Kf6 {[%clk 0:02:11]} 40. Nd3 {[%clk 0:00:11]}  Ke7 {[%clk 0:02:05]} 41. Rd4 {[%clk 0:00:09]}  f6 {[%clk 0:02:05]} 42. Ra4 {[%clk 0:00:07]}  e5 {[%clk 0:02:05]} 43. Ra7+ {[%clk 0:00:07]}  Ke6 {[%clk 0:02:05]} 44. Ra6+ {[%clk 0:00:07]}  Kf7 {[%clk 0:02:05]} 45. Ra4 {[%clk 0:00:06]}  f4+ {[%clk 0:02:04]} 46. Ke4 {[%clk 0:00:06]}  Rxh4 {[%clk 0:02:04]} 47. Kf5 {[%clk 0:00:06]}  Rh3 {[%clk 0:02:04]} 48. Ra7+ {[%clk 0:00:05]}  Ke8 {[%clk 0:02:05]} 49. Ke6 {[%clk 0:00:05]}  Kd8 {[%clk 0:02:05]} 50. Kxf6 {[%clk 0:00:04]}  Rxf3 {[%clk 0:02:03]} 51. Nxe5 {[%clk 0:00:03]}  Rxc3 {[%clk 0:02:03]} 52. Ra4 {[%clk 0:00:03]}  f3 {[%clk 0:02:03]} 53. Rf4 {[%clk 0:00:03]}  h4 {[%clk 0:02:01]} 54. Rxf3 {[%clk 0:00:02]}  Rc1 {[%clk 0:01:55]} 55. Kf5 {[%clk 0:00:02]}  Rh1 {[%clk 0:01:54]} 56. Ng4 {[%clk 0:00:01]}  Ke7 {[%clk 0:01:54]} 0-1


[Site "https://www.chess.com"]

[Event "Titled Tuesday Blitz January 17 Early 2023"]
[White "Sreyas Payyappat"]
[Black "ritanovikova"]
[WhiteFideId "46674969"]
[WhiteElo "2076"]
[BlackElo "2137"]
[Result "1-0"]
[Round "02"]
[TimeControl "180+2"]
[Date "2023.01.17"]
[WhiteClock "0:02:02"]
[BlackClock "0:01:15"]

1. e4 {[%clk 0:03:00]}  d5 {[%clk 0:02:58]} 2. exd5 {[%clk 0:03:01]}  Qxd5 {[%clk 0:02:58]} 3. d4 {[%clk 0:03:02]}  e5 {[%clk 0:02:58]} 4. Nf3 {[%clk 0:03:00]}  Nc6 {[%clk 0:02:53]} 5. c4 {[%clk 0:02:57]}  Bb4+ {[%clk 0:02:52]} 6. Nc3 {[%clk 0:02:55]}  Qe4+ {[%clk 0:02:51]} 7. Be3 {[%clk 0:02:54]}  exd4 {[%clk 0:02:48]} 8. Nxd4 {[%clk 0:02:54]}  Nxd4 {[%clk 0:02:48]} 9. Qxd4 {[%clk 0:02:55]}  Qxd4 {[%clk 0:02:47]} 10. Bxd4 {[%clk 0:02:56]}  f6 {[%clk 0:02:42]} 11. O-O-O {[%clk 0:02:55]}  Bd7 {[%clk 0:02:36]} 12. Nd5 {[%clk 0:02:51]}  Ba5 {[%clk 0:02:27]} 13. b4 {[%clk 0:02:49]}  c6 {[%clk 0:02:27]} 14. bxa5 {[%clk 0:02:39]}  cxd5 {[%clk 0:02:26]} 15. cxd5 {[%clk 0:02:40]}  Ne7 {[%clk 0:02:17]} 16. d6 {[%clk 0:02:38]}  Nf5 {[%clk 0:02:14]} 17. Be2 {[%clk 0:02:31]}  Rc8+ {[%clk 0:01:59]} 18. Kb2 {[%clk 0:02:30]}  a6 {[%clk 0:01:46]} 19. Rhe1 {[%clk 0:02:22]}  O-O {[%clk 0:01:35]} 20. Bf3 {[%clk 0:02:19]}  Nxd6 {[%clk 0:01:30]} 21. Bd5+ {[%clk 0:02:15]}  Kh8 {[%clk 0:01:29]} 22. Re7 {[%clk 0:02:14]}  Bc6 {[%clk 0:01:24]} 23. Bc5 {[%clk 0:02:10]}  Bxd5 {[%clk 0:01:20]} 24. Bxd6 {[%clk 0:02:02]}  Rfe8 {[%clk 0:01:14]} 25. Rxd5 {[%clk 0:02:00]}  Rxe7 {[%clk 0:01:13]} 26. Bxe7 {[%clk 0:02:01]}  h6 {[%clk 0:01:14]} 27. Rd8+ {[%clk 0:02:00]}  Rxd8 {[%clk 0:01:12]} 28. Bxd8 {[%clk 0:02:01]}  Kg8 {[%clk 0:01:12]} 29. Kc3 {[%clk 0:02:02]}  Kf7 {[%clk 0:01:13]} 30. Kb4 {[%clk 0:02:02]}  Ke6 {[%clk 0:01:13]} 31. Kc5 {[%clk 0:02:02]}  Kd7 {[%clk 0:01:14]} 32. Bb6 {[%clk 0:01:59]}  Ke6 {[%clk 0:01:13]} 33. Bc7 {[%clk 0:01:59]}  Kf5 {[%clk 0:01:13]} 34. Kb6 {[%clk 0:01:59]}  Ke4 {[%clk 0:01:12]} 35. Kxb7 {[%clk 0:02:00]}  Kd3 {[%clk 0:01:13]} 36. Kxa6 {[%clk 0:02:00]}  Ke2 {[%clk 0:01:14]} 37. Bb6 {[%clk 0:01:58]}  Kf1 {[%clk 0:01:14]} 38. g3 {[%clk 0:01:59]}  Kg2 {[%clk 0:01:14]} 39. Kb7 {[%clk 0:01:59]}  Kxh2 {[%clk 0:01:14]} 40. a6 {[%clk 0:02:00]}  g5 {[%clk 0:01:14]} 41. a7 {[%clk 0:02:01]}  h5 {[%clk 0:01:15]} 42. a8=Q {[%clk 0:02:02]}  h4 {[%clk 0:01:16]} 43. gxh4 {[%clk 0:02:01]}  gxh4 {[%clk 0:01:17]} 44. Qh8 {[%clk 0:02:02]}  h3 {[%clk 0:01:17]} 45. Qh4 {[%clk 0:02:01]}  f5 {[%clk 0:01:17]} 46. Qg3+ {[%clk 0:02:02]}  Kh1 {[%clk 0:01:16]} 47. Bc7 {[%clk 0:02:02]}  f4 {[%clk 0:01:15]} 48. Bxf4 {[%clk 0:02:02]} 1-0


[Site "https://www.chess.com"]

[Event "Titled Tuesday Blitz January 17 Early 2023"]
[White "Winkels, Marcel"]
[Black "Estrada Nieto, Julian"]
[WhiteFideId "1003887"]
[BlackFideId "5101018"]
[WhiteElo "1960"]
[BlackElo "2215"]
[Result "0-1"]
[Round "02"]
[TimeControl "180+2"]
[Date "2023.01.17"]
[WhiteClock "0:00:35"]
[BlackClock "0:00:45"]

1. e4 {[%clk 0:03:00]}  e5 {[%clk 0:03:00]} 2. Nf3 {[%clk 0:02:59]}  Nc6 {[%clk 0:03:00]} 3. Bc4 {[%clk 0:02:58]}  Bc5 {[%clk 0:02:59]} 4. b4 {[%clk 0:02:57]}  Bb6 {[%clk 0:02:59]} 5. b5 {[%clk 0:02:55]}  Nd4 {[%clk 0:02:59]} 6. Nxe5 {[%clk 0:02:46]}  Qg5 {[%clk 0:02:37]} 7. Nxf7 {[%clk 0:02:33]}  Qxg2 {[%clk 0:02:34]} 8. Rf1 {[%clk 0:02:33]}  Nf3+ {[%clk 0:02:17]} 9. Ke2 {[%clk 0:02:30]}  Nd4+ {[%clk 0:02:17]} 10. Ke1 {[%clk 0:02:29]}  d5 {[%clk 0:02:13]} 11. Bxd5 {[%clk 0:02:19]}  Bg4 {[%clk 0:01:41]} 12. e5 {[%clk 0:01:32]}  Qxd5 {[%clk 0:01:13]} 13. Qxg4 {[%clk 0:01:28]}  Qxf7 {[%clk 0:01:11]} 14. Na3 {[%clk 0:01:00]}  Nh6 {[%clk 0:01:04]} 15. Qe4 {[%clk 0:00:56]}  O-O-O {[%clk 0:00:58]} 16. c3 {[%clk 0:00:55]}  Nf3+ {[%clk 0:00:49]} 17. Kd1 {[%clk 0:00:54]}  Rhe8 {[%clk 0:00:47]} 18. d4 {[%clk 0:00:35]}  Bxd4 {[%clk 0:00:45]} 0-1


[Site "https://www.chess.com"]

[Event "Titled Tuesday Blitz January 17 Early 2023"]
[White "Urbina Perez, Juan Antonio"]
[Black "Sailer, Mike"]
[WhiteFideId "2217368"]
[BlackFideId "2012901"]
[WhiteElo "2266"]
[BlackElo "2109"]
[Result "0-1"]
[Round "02"]
[TimeControl "180+2"]
[Date "2023.01.17"]
[WhiteClock "0:01:53"]
[BlackClock "0:01:18"]

1. Nf3 {[%clk 0:02:48]}  d5 {[%clk 0:02:58]} 2. d4 {[%clk 0:02:37]}  Nf6 {[%clk 0:02:53]} 3. g3 {[%clk 0:02:36]}  Bf5 {[%clk 0:02:53]} 4. Bg2 {[%clk 0:02:37]}  e6 {[%clk 0:02:54]} 5. O-O {[%clk 0:02:37]}  Be7 {[%clk 0:02:54]} 6. c3 {[%clk 0:02:37]}  O-O {[%clk 0:02:54]} 7. Nbd2 {[%clk 0:02:35]}  h6 {[%clk 0:02:54]} 8. Re1 {[%clk 0:02:34]}  c5 {[%clk 0:02:53]} 9. dxc5 {[%clk 0:02:32]}  Bxc5 {[%clk 0:02:53]} 10. Nd4 {[%clk 0:02:26]}  Bh7 {[%clk 0:02:49]} 11. N4b3 {[%clk 0:02:24]}  Bxf2+ {[%clk 0:02:23]} 12. Kxf2 {[%clk 0:02:21]}  Ng4+ {[%clk 0:02:23]} 13. Kg1 {[%clk 0:02:19]}  Ne3 {[%clk 0:02:22]} 14. Nf3 {[%clk 0:02:15]}  Nxd1 {[%clk 0:02:21]} 15. Rxd1 {[%clk 0:02:15]}  Qb6+ {[%clk 0:02:15]} 16. Kh1 {[%clk 0:02:16]}  Be4 {[%clk 0:02:15]} 17. Bf4 {[%clk 0:02:14]}  Nd7 {[%clk 0:02:10]} 18. Rd2 {[%clk 0:02:11]}  g5 {[%clk 0:02:02]} 19. Be5 {[%clk 0:02:04]}  Bxf3 {[%clk 0:01:56]} 20. Bd4 {[%clk 0:02:02]}  Bxg2+ {[%clk 0:01:55]} 21. Kxg2 {[%clk 0:02:02]}  Qc7 {[%clk 0:01:47]} 22. h4 {[%clk 0:02:02]}  e5 {[%clk 0:01:39]} 23. Bf2 {[%clk 0:02:02]}  Nb6 {[%clk 0:01:27]} 24. hxg5 {[%clk 0:02:01]}  hxg5 {[%clk 0:01:27]} 25. Rh1 {[%clk 0:01:58]}  Kg7 {[%clk 0:01:27]} 26. Be3 {[%clk 0:01:56]}  f6 {[%clk 0:01:26]} 27. Rdd1 {[%clk 0:01:56]}  Rh8 {[%clk 0:01:25]} 28. Nc5 {[%clk 0:01:55]}  Rxh1 {[%clk 0:01:24]} 29. Rxh1 {[%clk 0:01:56]}  Qc6 {[%clk 0:01:19]} 30. b4 {[%clk 0:01:53]}  d4+ {[%clk 0:01:18]} 0-1


[Site "https://www.chess.com"]

[Event "Titled Tuesday Blitz January 17 Early 2023"]
[White "Jaskolka, Tomasz"]
[Black "Larina, Maria"]
[WhiteFideId "1170791"]
[BlackFideId "24113182"]
[WhiteElo "2238"]
[BlackElo "1948"]
[Result "1-0"]
[Round "02"]
[TimeControl "180+2"]
[Date "2023.01.17"]
[WhiteClock "0:00:30"]
[BlackClock "0:00:17"]

1. d4 {[%clk 0:02:59]}  f5 {[%clk 0:02:59]} 2. Bg5 {[%clk 0:02:58]}  g6 {[%clk 0:02:59]} 3. h4 {[%clk 0:02:57]}  h6 {[%clk 0:02:58]} 4. Bf4 {[%clk 0:02:57]}  d6 {[%clk 0:02:59]} 5. e3 {[%clk 0:02:57]}  Bg7 {[%clk 0:02:59]} 6. c4 {[%clk 0:02:57]}  e5 {[%clk 0:02:48]} 7. dxe5 {[%clk 0:02:56]}  dxe5 {[%clk 0:02:49]} 8. Qxd8+ {[%clk 0:02:56]}  Kxd8 {[%clk 0:02:49]} 9. Bg3 {[%clk 0:02:56]}  Be6 {[%clk 0:02:40]} 10. Nc3 {[%clk 0:02:55]}  Nd7 {[%clk 0:02:38]} 11. O-O-O {[%clk 0:02:53]}  c6 {[%clk 0:02:37]} 12. Nf3 {[%clk 0:02:49]}  Ke7 {[%clk 0:02:23]} 13. Be2 {[%clk 0:02:45]}  e4 {[%clk 0:01:41]} 14. Nd4 {[%clk 0:02:42]}  Bf7 {[%clk 0:01:36]} 15. Bd6+ {[%clk 0:02:15]}  Ke8 {[%clk 0:01:34]} 16. h5 {[%clk 0:02:06]}  Be5 {[%clk 0:01:28]} 17. hxg6 {[%clk 0:01:49]}  Bxg6 {[%clk 0:01:29]} 18. Ne6 {[%clk 0:01:32]}  Bxd6 {[%clk 0:01:10]} 19. Rxd6 {[%clk 0:01:33]}  Ke7 {[%clk 0:01:09]} 20. Rhd1 {[%clk 0:01:33]}  Ngf6 {[%clk 0:01:09]} 21. Nf4 {[%clk 0:01:21]}  Bf7 {[%clk 0:01:07]} 22. b3 {[%clk 0:01:09]}  Ne5 {[%clk 0:01:04]} 23. c5 {[%clk 0:00:58]}  Rad8 {[%clk 0:00:59]} 24. Kc2 {[%clk 0:00:54]}  b6 {[%clk 0:00:55]} 25. b4 {[%clk 0:00:49]}  Nfd7 {[%clk 0:00:30]} 26. g4 {[%clk 0:00:32]}  bxc5 {[%clk 0:00:23]} 27. gxf5 {[%clk 0:00:32]}  cxb4 {[%clk 0:00:21]} 28. Nxe4 {[%clk 0:00:32]}  Nb6 {[%clk 0:00:17]} 29. f6+ {[%clk 0:00:30]} 1-0


[Site "https://www.chess.com"]